[Event "32nd Panamerican Youth 2022"]
[Site "Montevideo"]
[Date "2022.07.01"]
[Round "8.10"]
[White "Garzon Camelo, Andres Santiago"]
[Black "Hebbar, Eshaan"]
[Result "1-0"]
[ECO "C54"]
[WhiteElo "1824"]
[BlackElo "1860"]
[Annotator "NA RC"]
[PlyCount "146"]
[EventDate "2022.06.26"]
[EventType "swiss"]
[EventCountry "URU"]
[SourceTitle "playchess.com"]
[Source "ChessBase"]
[SourceQuality "1"]
[TimeControl "5400+30"]

{[%evp 44,146,-9,-5,32767,32767,13,18,32767,0,30,31,32767,32767,32767,32767,6,3,14,0,0,0,0,8,21,21,106,82,103,87,108,70,140,32767,122,32767,32767,32767,154,95,182,165,168,158,225,262,224,276,247,250,241,32767,32767,296,479,32767,457,32767,32767,32767,327,0,32767,32767,32767,32767,32767,32767,32767,32767,32767,32767,32767,32767,32767,32767,32767,1660,5065,0,1167,1406,975,2161,1272,5526,6083,29972,5181,29977,29952,29974,6203,29977,29954,29982,29974,29981,32767,32767,32767,32767,32767,29988,29986]} 1. e4 {[%emt 0:00:10]} e5 {[%emt 0:00:06]} 2. Nf3 {[%emt 0:00:07]} Nc6 {[%emt 0:00:11]} 3. Bc4 {[%emt 0:00:12]} Bc5 {[%emt 0:00:07]} 4. c3 {[%emt 0:00:18]} Nf6 {[%emt 0:00:04]} 5. d3 {[%emt 0:00:08]} d6 {[%emt 0:00:04]} 6. O-O {[%emt 0:00:15]} h6 {[%emt 0:00:04]} 7. a4 {[%emt 0:00:24]} a6 {[%emt 0:00:08]} 8. Ba2 {[%emt 0:01:04]} O-O {[%emt 0:00:56]} 9. Nbd2 {[%emt 0:00:15]} Ba7 {[%emt 0:01:49]} 10. h3 {[%emt 0:00:40]} Ne7 {[%emt 0:00:14]} 11. Re1 {[%emt 0:00:22]} Ng6 {[%emt 0:00:58]} 12. Nf1 {[%emt 0:00:22]} c6 {[%emt 0:01:12]} 13. d4 {[%emt 0:01:26]} Qc7 {[%emt 0:03:22]} 14. Ng3 {[%emt 0:00:23]} Re8 {[%emt 0:00:59]} 15. Be3 {[%emt 0:04:37]} exd4 {[%emt 0:02:34]} 16. Bxd4 {[%emt 0:00:53]} Bxd4 {[%emt 0:00:16]} 17. Qxd4 {[%emt 0:00:18]} Be6 {[%emt 0:04:13]} 18. Bxe6 {[%emt 0:01:59]} Rxe6 {[%emt 0:00:31]} 19. Re3 {[%emt 0:02:25]} Rae8 {[%emt 0:02:31]} 20. Rae1 {[%emt 0:00:37]} c5 {[%emt 0:02:35]} 21. Qd3 {[%emt 0:01:23]} Qc6 {[%emt 0:00:59]} 22. b3 {[%emt 0:01:18]} Nf4 {[%emt 0:08:47]} 23. Qc2 {[%emt 0:01:36]} g6 {[%emt 0:05:30]} 24. c4 {[%emt 0:01:43]} Nd7 {[%emt 0:04:40]} 25. Ne2 {[%emt 0:00:38]} Nxe2+ {[%emt 0:02:31]} 26. R3xe2 {[%emt 0:02:03]} Nf6 {[%emt 0:02:34]} 27. Nd2 {[%emt 0:00:38]} Qc7 {[%emt 0:00:49]} 28. Qd3 {[%emt 0:00:38]} Qe7 {[%emt 0:00:37]} 29. f4 {[%emt 0:01:49]} Nh5 $1 {[%emt 0:03:55]} 30. g3 {[%emt 0:02:00]} f5 {[%emt 0:02:01]} 31. e5 {[%emt 0:01:56]} dxe5 {[%emt 0:03:57]} 32. Rxe5 {[%emt 0:02:20]} Rxe5 {[%emt 0:01:06]} 33. Rxe5 {[%emt 0:00:09]} Rd8 {[%emt 0:03:56]} 34. Qe3 {[%emt 0:00:27]} Qd7 {[%emt 0:00:37]} (34... Qd6 $1 $11 {remains equal.}) 35. Rd5 {[%emt 0:00:57]} Re8 {[%emt 0:01:12]} 36. Qxc5 {[%emt 0:01:04]} ({Of course not} 36. Rxd7 Rxe3 37. g4 Nxf4 38. gxf5 Nxh3+ 39. Kf1 g5 40. Rxb7 Nf4 $15) 36... Qg7 {[%emt 0:02:44]} 37. Nf1 {[%emt 0:01:08]} Qa1 {[%emt 0:08:57]} ({Black should play} 37... Nf6 $14) 38. Qd4 {[%emt 0:00:52]} Qxd4+ {[%emt 0:06:28]} 39. Rxd4 {[%emt 0:00:09]} Nf6 {[%emt 0:00:41]} 40. Nd2 {[%emt 0:00:25]} Kg7 {[%emt 0:01:54]} 41. Rd6 {[%emt 0:00:40]} (41. Kf2 $142) 41... Re7 {[%emt 0:01:49]} (41... Re3 $16 {might work better.}) 42. Rb6 {[%emt 0:00:41]} Rc7 {[%emt 0:04:07]} 43. Nf3 {[%emt 0:01:51]} Ne4 {[%emt 0:00:49]} (43... Nd7 $16 44. Rd6 Nc5) 44. Kg2 {[%emt 0:01:02]} Re7 {[%emt 0:02:50]} 45. Ne5 {[%emt 0:00:41]} g5 {[%emt 0:00:30]} 46. b4 {[%emt 0:02:09]} gxf4 {[%emt 0:00:55]} 47. gxf4 {[%emt 0:01:02]} Rc7 {[%emt 0:00:42]} 48. c5 {[%emt 0:00:05]} a5 {[%emt 0:01:07]} 49. c6 {[%emt 0:02:24]} bxc6 {[%emt 0:01:09]} 50. bxa5 {[%emt 0:00:07]} Nc5 {[%emt 0:02:58]} 51. Rb4 {[%emt 0:03:09]} Na6 {[%emt 0:01:02]} 52. Rb6 $2 {[%emt 0:00:32]} (52. Rb1 $18) 52... Nc5 {[%emt 0:00:08]} 53. Nxc6 {[%emt 0:01:40]} Nxa4 {[%emt 0:00:09]} 54. Nd4 {[%emt 0:00:05]} Nxb6 {[%emt 0:04:09]} 55. Ne6+ {[%emt 0:00:12]} Kf6 {[%emt 0:00:42]} 56. Nxc7 {[%emt 0:00:10]} Nc8 {[%emt 0:00:13]} 57. Nb5 {[%emt 0:00:13]} Ke6 {[%emt 0:00:47]} 58. Kg3 {[%emt 0:00:26]} Kf6 {[%emt 0:00:37]} 59. a6 {[%emt 0:00:14]} Nb6 {[%emt 0:00:04]} 60. Nc7 $18 {[%emt 0:02:52]} Nc8 {[%emt 0:00:06]} 61. Nb5 $2 {[%emt 0:00:59]} (61. Nd5+ $18 Ke6 62. Ne3) 61... Nb6 $1 {[%emt 0:00:14]} 62. Kf3 {[%emt 0:01:25]} Ke6 {[%emt 0:00:26]} 63. Ke3 {[%emt 0:00:25]} (63. Nd4+ $142 Kd7 64. Nxf5) 63... h5 {[%emt 0:01:52]} 64. Kd4 {[%emt 0:01:21]} h4 {[%emt 0:00:55]} 65. Kc5 {[%emt 0:00:25]} Nd7+ {[%emt 0:00:11]} 66. Kb4 {[%emt 0:00:49]} Kd5 {[%emt 0:02:17]} 67. a7 {[%emt 0:08:40]} Nb6 {[%emt 0:00:29]} 68. Ka5 {[%emt 0:01:49]} Kc6 {[%emt 0:02:36]} 69. Ka6 {[%emt 0:00:18]} Na8 {[%emt 0:01:13]} 70. Nd4+ {[%emt 0:00:38]} Kc7 {[%emt 0:00:28]} 71. Nxf5 {[%emt 0:00:16]} Kc6 {[%emt 0:00:08]} 72. Nd4+ {[%emt 0:00:14]} Kc7 {[%emt 0:00:07]} 73. f5 {[%emt 0:00:10]} Kc8 {[%emt 0:00:27]} 1-0

[Event "32nd Panamerican Youth 2022"]
[Site "Montevideo"]
[Date "2022.07.01"]
[Round "8.11"]
[White "Marrujo Pardo, Mauricio Emmanuel"]
[Black "Bazan, Octavio Aaron"]
[Result "1-0"]
[ECO "A45"]
[WhiteElo "2049"]
[BlackElo "1607"]
[Annotator "RC"]
[PlyCount "67"]
[EventDate "2022.06.26"]
[EventType "swiss"]
[EventCountry "URU"]
[SourceTitle "playchess.com"]
[Source "ChessBase"]
[SourceQuality "1"]
[TimeControl "5400+30"]

1. d4 {[%emt 0:00:02]} Nf6 {[%emt 0:00:11]} 2. Bf4 {[%emt 0:00:06]} d5 {[%emt 0:00:12]} 3. e3 {[%emt 0:00:07]} c5 {[%emt 0:00:27]} 4. Nf3 {[%emt 0:00:11]} Nc6 {[%emt 0:00:13]} 5. Nbd2 {[%emt 0:00:23]} e6 {[%emt 0:01:06]} 6. c3 {[%emt 0:00:27]} Bd6 {[%emt 0:05:46]} 7. Bg3 {[%emt 0:00:13]} Bxg3 {[%emt 0:02:20]} 8. hxg3 {[%emt 0:00:07]} cxd4 {[%emt 0:00:28]} 9. exd4 {[%emt 0:00:52]} Qd6 {[%emt 0:14:07]} 10. Bd3 {[%emt 0:03:36]} a6 {[%emt 0:01:28]} 11. Qe2 {[%emt 0:01:59]} h6 {[%emt 0:05:23]} 12. Ne5 {[%emt 0:00:40]} Nd7 {[%emt 0:03:15]} 13. f4 {[%emt 0:02:59]} Ndxe5 {[%emt 0:03:03]} 14. fxe5 {[%emt 0:00:07]} Qe7 {[%emt 0:02:53]} 15. Qg4 {[%emt 0:04:44]} g6 {[%emt 0:03:40]} 16. O-O {[%emt 0:14:34]} Bd7 {[%emt 0:08:40]} 17. Rxf7 {[%emt 0:01:11]} Qxf7 {[%emt 0:01:47]} 18. Bxg6 {[%emt 0:00:03]} Qxg6 {[%emt 0:00:48]} 19. Qxg6+ {[%emt 0:00:01]} Kd8 {[%emt 0:00:07]} 20. Nb3 {[%emt 0:00:27]} b6 {[%emt 0:00:25]} 21. Rf1 {[%emt 0:00:19]} Kc7 {[%emt 0:01:04]} 22. Rf7 {[%emt 0:00:09]} Rae8 {[%emt 0:00:51]} 23. Qg7 {[%emt 0:02:42]} Nb8 {[%emt 0:00:15]} 24. c4 {[%emt 0:00:39]} dxc4 {[%emt 0:00:33]} 25. Nd2 {[%emt 0:00:02]} Rhg8 {[%emt 0:01:15]} 26. Qxh6 {[%emt 0:00:13]} b5 {[%emt 0:00:38]} 27. Ne4 Rh8 {[%emt 0:06:18]} 28. Qe3 {[%emt 0:01:36]} Ref8 {[%emt 0:03:04]} 29. Rxf8 {[%emt 0:00:52]} Rxf8 {[%emt 0:00:10]} 30. Nf6 Nc6 {[%emt 0:00:38]} 31. d5 {[%emt 0:00:24]} exd5 {[%emt 0:00:26]} 32. Nxd5+ {[%emt 0:00:03]} Kd8 {[%emt 0:00:30]} 33. e6 {[%emt 0:00:13]} Re8 {[%emt 0:00:20]} 34. Qb6+ {[%emt 0:00:02]} 1-0

[Event "32nd Panamerican Youth 2022"]
[Site "Montevideo"]
[Date "2022.07.01"]
[Round "8.12"]
[White "Paris, Adolfo"]
[Black "Mercado Diaz, Fabricio Edwin"]
[Result "1/2-1/2"]
[ECO "A37"]
[WhiteElo "1640"]
[BlackElo "1549"]
[Annotator "NA RC"]
[PlyCount "141"]
[EventDate "2022.06.26"]
[EventType "swiss"]
[EventCountry "URU"]
[SourceTitle "playchess.com"]
[Source "ChessBase"]
[SourceQuality "1"]
[TimeControl "5400+30"]

1. c4 {[%emt 0:00:03]} c5 {[%emt 0:00:04]} 2. g3 {[%emt 0:00:03]} g6 {[%emt 0:00:06]} 3. Bg2 {[%emt 0:00:05]} Bg7 {[%emt 0:00:09]} 4. Nf3 {[%emt 0:00:06]} Nc6 {[%emt 0:00:10]} 5. Nc3 {[%emt 0:00:23]} e5 {[%emt 0:00:22]} 6. d3 {[%emt 0:01:42]} Nge7 {[%emt 0:02:58]} 7. O-O {[%emt 0:01:37]} O-O {[%emt 0:00:06]} 8. Rb1 {[%emt 0:04:05]} Rb8 {[%emt 0:00:53]} 9. a3 {[%emt 0:01:40]} a5 {[%emt 0:00:06]} 10. b3 {[%emt 0:02:26]} d6 {[%emt 0:02:32]} 11. Bb2 {[%emt 0:02:19]} h6 {[%emt 0:00:47]} 12. Qd2 {[%emt 0:01:37]} Be6 {[%emt 0:00:18]} 13. e4 {[%emt 0:00:40]} f5 {[%emt 0:02:31]} 14. Nd5 {[%emt 0:03:04]} Bxd5 {[%emt 0:01:57]} 15. exd5 {[%emt 0:01:33]} Nd4 16. b4 axb4 {[%emt 0:02:29]} 17. axb4 {[%emt 0:02:51]} b6 {[%emt 0:00:06]} 18. Nxd4 {[%emt 0:01:16]} cxd4 {[%emt 0:01:39]} 19. Ra1 {[%emt 0:06:30]} Qc7 {[%emt 0:01:40]} 20. Ra6 {[%emt 0:05:00]} Ra8 {[%emt 0:03:42]} 21. Rfa1 {[%emt 0:04:35]} Rxa6 {[%emt 0:01:11]} 22. Rxa6 {[%emt 0:00:05]} Qb7 {[%emt 0:06:21]} 23. b5 {[%emt 0:01:49]} Ra8 {[%emt 0:04:57]} 24. Qb4 {[%emt 0:07:13]} Nc8 {[%emt 0:02:21]} 25. Qa4 {[%emt 0:03:23]} Ra7 {[%emt 0:01:59]} 26. Bh3 {[%emt 0:04:09]} Kf7 {[%emt 0:17:42]} 27. Kf1 {[%emt 0:03:29]} Kf6 {[%emt 0:03:00]} 28. f4 {[%emt 0:05:20]} exf4 {[%emt 0:02:41]} 29. gxf4 {[%emt 0:03:36]} Kf7 {[%emt 0:01:46]} 30. Bg2 {[%emt 0:04:31]} Qc7 {[%emt 0:09:31]} 31. Qa1 {[%emt 0:02:46]} Qb7 {[%emt 0:03:25]} 32. Bf3 {[%emt 0:03:24]} h5 {[%emt 0:03:38]} 33. Kf2 {[%emt 0:07:02]} Bf6 {[%emt 0:02:51]} 34. Be2 {[%emt 0:00:42]} Bh4+ {[%emt 0:03:36]} 35. Kf1 {[%emt 0:00:16]} Bf6 {[%emt 0:00:06]} 36. Ke1 {[%emt 0:00:27]} Bg7 {[%emt 0:01:11]} 37. Kd1 {[%emt 0:00:55]} Bh8 {[%emt 0:00:26]} 38. Bf3 {[%emt 0:02:25]} Bg7 {[%emt 0:01:01]} 39. Kc2 {[%emt 0:01:55]} Bh8 {[%emt 0:05:19]} 40. Kb3 {[%emt 0:02:34]} Bg7 {[%emt 0:00:23]} 41. Bxd4 {[%emt 0:02:52]} Bxd4 {[%emt 0:00:50]} 42. Rxa7 {[%emt 0:00:08]} Qxa7 {[%emt 0:00:39]} 43. Qxd4 {[%emt 0:00:07]} Qe7 {[%emt 0:01:28]} 44. Qf2 {[%emt 0:02:07]} Qe8 {[%emt 0:01:26]} 45. h4 {[%emt 0:01:43]} Qe7 {[%emt 0:00:44]} 46. Bd1 {[%emt 0:03:04]} Kg7 {[%emt 0:01:03]} 47. Kc3 {[%emt 0:01:32]} Qa7 {[%emt 0:00:53]} 48. Bb3 {[%emt 0:00:54]} Qa1+ {[%emt 0:01:46]} 49. Kc2 {[%emt 0:00:36]} Qh1 {[%emt 0:01:43]} 50. d4 {[%emt 0:00:27]} Na7 51. c5 {[%emt 0:02:13]} bxc5 {[%emt 0:02:38]} 52. b6 {[%emt 0:00:08]} Nb5 {[%emt 0:02:04]} 53. b7 {[%emt 0:00:17]} Qa1 {[%emt 0:00:05]} 54. b8=Q {[%emt 0:00:42]} Qc3+ {[%emt 0:00:10]} 55. Kb1 {[%emt 0:00:35]} Qxb3+ {[%emt 0:00:23]} 56. Qb2 {[%emt 0:00:08]} Nc3+ {[%emt 0:04:27]} 57. Ka1 {[%emt 0:00:19]} Qd1+ {[%emt 0:00:07]} 58. Qb1 {[%emt 0:00:11]} Qxb1+ {[%emt 0:00:44]} 59. Qxb1 {[%emt 0:00:08]} Nxb1 {[%emt 0:00:03]} 60. Kxb1 {[%emt 0:00:25]} Kf7 {[%emt 0:01:29]} 61. Kc2 {[%emt 0:00:10]} Ke7 {[%emt 0:00:07]} 62. Kc3 {[%emt 0:00:39]} cxd4+ {[%emt 0:00:29]} 63. Kxd4 {[%emt 0:00:15]} Kd7 {[%emt 0:00:37]} 64. Kd3 {[%emt 0:00:08]} Kc8 {[%emt 0:00:44]} 65. Kc3 {[%emt 0:00:05]} Kb7 {[%emt 0:00:25]} 66. Kb3 {[%emt 0:00:16]} Kb8 {[%emt 0:00:41]} 67. Kb2 {[%emt 0:00:00]} Kc8 {[%emt 0:00:25]} 68. Kc2 {[%emt 0:00:03]} Kb7 {[%emt 0:00:24]} 69. Kb3 {[%emt 0:00:06]} Ka6 {[%emt 0:00:11]} 70. Ka4 {[%emt 0:00:10]} Ka7 {[%emt 0:00:44]} 71. Ka5 1/2-1/2

[Event "32nd Panamerican Youth 2022"]
[Site "Montevideo"]
[Date "2022.07.01"]
[Round "8.13"]
[White "Chen, Rachel Ruoxuan"]
[Black "Diaz Bartolo, Elizabeth Schahrazad"]
[Result "1-0"]
[ECO "B06"]
[WhiteElo "1614"]
[BlackElo "1603"]
[Annotator "NA RC"]
[PlyCount "103"]
[EventDate "2022.06.26"]
[EventType "swiss"]
[EventCountry "URU"]
[SourceTitle "playchess.com"]
[Source "ChessBase"]
[SourceQuality "1"]
[TimeControl "5400+30"]

1. e4 g6 2. d4 Bg7 3. Nf3 d6 4. Bc4 c6 5. O-O {[%emt 1:09:39]} Nf6 {[%emt 0:24:11]} 6. Qe2 {[%emt 0:00:30]} b5 {[%emt 0:00:30]} 7. Bb3 {[%emt 0:00:30]} O-O {[%emt 0:00:30]} 8. e5 {[%emt 0:00:30]} Nd5 {[%emt 0:00:30]} 9. Re1 {[%emt 0:00:30]} dxe5 {[%emt 0:00:30]} 10. dxe5 {[%emt 0:00:30]} Bg4 {[%emt 0:00:30]} 11. h3 {[%emt 0:00:00]} Bxf3 {[%emt 0:17:16]} 12. Qxf3 {[%emt 0:00:00]} e6 13. a4 {[%emt 0:00:00]} Nd7 {[%emt 0:04:01]} 14. axb5 {[%emt 0:00:00]} Nxe5 {[%emt 0:10:10]} 15. Qg3 {[%emt 0:00:00]} Qc7 {[%emt 0:04:49]} 16. Bd2 {[%emt 0:00:00]} cxb5 {[%emt 0:12:36]} 17. Nc3 Ne7 18. Nxb5 {[%emt 0:00:00]} Qd7 {[%emt 0:03:12]} 19. Bc3 {[%emt 0:00:00]} Nf5 20. Qf4 {[%emt 0:03:25]} Qxb5 {[%emt 0:03:04]} 21. Bxe5 {[%emt 0:00:08]} Bxe5 {[%emt 0:00:41]} 22. Rxe5 {[%emt 0:00:55]} Qb6 23. Re4 {[%emt 0:01:48]} Rfd8 {[%emt 0:00:34]} 24. Rb4 {[%emt 0:01:17]} Qc5 {[%emt 0:01:41]} 25. Rb7 a5 {[%emt 0:02:59]} 26. Qc7 {[%emt 0:07:08]} Qxc7 {[%emt 0:00:02]} 27. Rxc7 {[%emt 0:00:03]} Nd4 {[%emt 0:00:54]} 28. Ba4 {[%emt 0:04:03]} Rdc8 {[%emt 0:01:30]} 29. Rxc8+ {[%emt 0:00:24]} Rxc8 {[%emt 0:00:01]} 30. c3 {[%emt 0:00:24]} Ne2+ {[%emt 0:00:06]} 31. Kf1 {[%emt 0:00:30]} Nf4 {[%emt 0:00:30]} 32. Bb5 {[%emt 0:00:30]} Rd8 {[%emt 0:00:30]} 33. g3 {[%emt 0:03:52]} Nxh3 {[%emt 0:00:09]} 34. Ke2 {[%emt 0:00:30]} Ng5 {[%emt 0:00:30]} 35. Rxa5 {[%emt 0:00:30]} Ne4 {[%emt 0:00:30]} 36. Ke3 {[%emt 0:00:30]} Nd6 {[%emt 0:00:30]} 37. Bd3 Rb8 {[%emt 0:00:03]} 38. b4 {[%emt 0:02:17]} Kf8 {[%emt 0:02:14]} 39. b5 {[%emt 0:00:56]} e5 {[%emt 0:01:37]} 40. c4 {[%emt 0:00:42]} Nb7 {[%emt 0:00:15]} 41. Ra6 {[%emt 0:00:30]} Nc5 {[%emt 0:00:30]} 42. Rc6 {[%emt 0:00:30]} Nd7 {[%emt 0:00:30]} 43. c5 {[%emt 0:00:55]} f5 {[%emt 0:02:20]} 44. Rc7 {[%emt 0:02:21]} Nf6 {[%emt 0:00:27]} 45. Kd2 {[%emt 0:00:30]} Ke8 {[%emt 0:01:09]} 46. b6 {[%emt 0:01:30]} Kd8 {[%emt 0:03:48]} 47. Rf7 {[%emt 0:00:33]} Ne8 {[%emt 0:01:22]} 48. Bb5 {[%emt 0:00:30]} Ra8 {[%emt 0:00:45]} 49. b7 {[%emt 0:00:37]} Ra2+ {[%emt 0:00:16]} 50. Kc3 {[%emt 0:00:08]} Nd6 {[%emt 0:00:30]} 51. b8=Q+ {[%emt 0:00:30]} Nc8 {[%emt 0:00:30]} 52. Qc7# {[%emt 0:00:30]} 1-0

[Event "32nd Panamerican Youth 2022"]
[Site "Montevideo"]
[Date "2022.07.01"]
[Round "8.14"]
[White "Wilson, Hannah"]
[Black "Da Cunha, Gabriela Goes"]
[Result "0-1"]
[ECO "A50"]
[WhiteElo "1556"]
[BlackElo "1719"]
[Annotator "NA RC"]
[PlyCount "37"]
[EventDate "2022.06.26"]
[EventType "swiss"]
[EventCountry "URU"]
[SourceTitle "playchess.com"]
[Source "ChessBase"]
[SourceQuality "1"]
[TimeControl "5400+30"]

1. d4 Nf6 2. c4 b6 3. Nc3 Bb7 4. Qc2 e6 5. Nf3 Bb4 6. Bg5 h6 7. Bh4 g5 8. Bg3 Ne4 9. a3 Bxc3+ 10. bxc3 Nxg3 11. hxg3 f5 12. g4 Qf6 13. gxf5 exf5 14. Qd2 Nc6 15. Qe3+ Ne7 16. Ne5 d6 17. Nd3 O-O 18. a4 Nc6 19. Qd2 0-1

[Event "32nd Panamerican Youth 2022"]
[Site "Montevideo"]
[Date "2022.07.01"]
[Round "8.15"]
[White "Salazar Salinas, Maria Jose"]
[Black "Adam, Ernestina"]
[Result "0-1"]
[ECO "A45"]
[WhiteElo "1449"]
[BlackElo "1723"]
[Annotator "NA RC"]
[PlyCount "62"]
[EventDate "2022.06.26"]
[EventType "swiss"]
[EventCountry "URU"]
[SourceTitle "playchess.com"]
[Source "ChessBase"]
[SourceQuality "1"]
[TimeControl "5400+30"]

1. d4 {[%emt 0:00:04]} Nf6 {[%emt 0:00:23]} 2. Nc3 {[%emt 0:00:20]} d5 {[%emt 0:00:45]} 3. Bf4 {[%emt 0:00:31]} g6 {[%emt 0:01:16]} 4. h3 {[%emt 0:03:43]} Bg7 {[%emt 0:03:24]} 5. g4 {[%emt 0:03:18]} c5 {[%emt 0:07:19]} 6. e3 {[%emt 0:03:13]} O-O {[%emt 0:08:34]} 7. Bg2 {[%emt 0:03:25]} Be6 {[%emt 0:05:18]} 8. Nge2 {[%emt 0:05:02]} Nc6 {[%emt 0:05:18]} 9. Ng3 {[%emt 0:05:43]} cxd4 {[%emt 0:07:00]} 10. exd4 {[%emt 0:02:18]} Qb6 {[%emt 0:00:50]} 11. g5 {[%emt 0:08:16]} Nd7 {[%emt 0:01:06]} 12. O-O {[%emt 0:02:36]} Qxb2 {[%emt 0:21:07]} 13. Nxd5 {[%emt 0:11:27]} Bxd5 {[%emt 0:03:13]} 14. Bxd5 {[%emt 0:03:46]} Nb6 {[%emt 0:01:54]} 15. Bxc6 {[%emt 0:04:34]} bxc6 {[%emt 0:00:43]} 16. Be3 {[%emt 0:10:36]} Rad8 {[%emt 0:01:40]} 17. Qf3 {[%emt 0:01:05]} Bxd4 {[%emt 0:11:49]} 18. Bxd4 {[%emt 0:03:00]} Qxd4 {[%emt 0:00:33]} 19. Qxc6 {[%emt 0:08:55]} Qh4 {[%emt 0:02:04]} 20. Qe4 {[%emt 0:02:52]} Qxg5 {[%emt 0:02:31]} 21. h4 {[%emt 0:01:38]} Qf6 {[%emt 0:01:43]} 22. Rae1 {[%emt 0:02:36]} e6 {[%emt 0:03:35]} 23. Qh1 {[%emt 0:05:24]} Nc4 {[%emt 0:02:04]} 24. Rd1 {[%emt 0:02:58]} Nd2 {[%emt 0:03:51]} 25. Rxd2 {[%emt 0:02:23]} Rxd2 {[%emt 0:00:07]} 26. Ne4 {[%emt 0:00:12]} Qf4 {[%emt 0:00:12]} 27. Nxd2 {[%emt 0:00:37]} Qxd2 {[%emt 0:00:06]} 28. Qb7 {[%emt 0:00:41]} Qxc2 {[%emt 0:01:11]} 29. Qxa7 {[%emt 0:00:37]} Qe4 {[%emt 0:00:29]} 30. Qe7 {[%emt 0:01:17]} Qg4+ {[%emt 0:01:00]} 31. Kh1 Rc8 {[%emt 0:01:09]} 0-1

[Event "32nd Panamerican Youth 2022"]
[Site "Montevideo"]
[Date "2022.07.01"]
[Round "8.16"]
[White "Norabuena Ticona, Gabriela Paola"]
[Black "Brito Carrascal, Isabela"]
[Result "0-1"]
[ECO "A05"]
[WhiteElo "1410"]
[BlackElo "1599"]
[Annotator "NA RC"]
[PlyCount "172"]
[EventDate "2022.06.26"]
[EventType "swiss"]
[EventCountry "URU"]
[SourceTitle "playchess.com"]
[Source "ChessBase"]
[SourceQuality "1"]
[TimeControl "5400+30"]

1. Nf3 {[%emt 0:00:14]} Nf6 {[%emt 0:00:04]} 2. c4 {[%emt 0:00:23]} e6 {[%emt 0:00:11]} 3. e3 {[%emt 0:01:14]} b6 {[%emt 0:00:24]} 4. d4 {[%emt 0:00:17]} Bb7 {[%emt 0:00:15]} 5. Nc3 {[%emt 0:01:11]} Bb4 {[%emt 0:00:06]} 6. a3 {[%emt 0:01:31]} Bxc3+ {[%emt 0:00:18]} 7. bxc3 {[%emt 0:00:44]} Ne4 {[%emt 0:00:16]} 8. Bb2 {[%emt 0:00:43]} O-O {[%emt 0:00:44]} 9. Be2 {[%emt 0:02:50]} d6 {[%emt 0:02:37]} 10. O-O {[%emt 0:01:21]} Nd7 {[%emt 0:01:53]} 11. a4 {[%emt 0:07:04]} a5 {[%emt 0:01:06]} 12. Qc2 {[%emt 0:07:48]} f5 {[%emt 0:04:46]} 13. Rad1 {[%emt 0:10:03]} Rf6 {[%emt 0:25:05]} 14. d5 {[%emt 0:10:29]} e5 {[%emt 0:01:36]} 15. Ba3 {[%emt 0:05:28]} Bc8 {[%emt 0:05:05]} 16. Nd2 {[%emt 0:09:49]} Rh6 {[%emt 0:11:21]} 17. f3 {[%emt 0:19:47]} Nxd2 {[%emt 0:03:02]} 18. Qxd2 {[%emt 0:02:29]} Qh4 {[%emt 0:01:06]} 19. h3 {[%emt 0:00:10]} Nf6 {[%emt 0:03:35]} 20. Bd3 {[%emt 0:01:56]} Nh5 {[%emt 0:03:49]} 21. Qf2 {[%emt 0:01:03]} Ng3 {[%emt 0:01:15]} 22. Rfe1 {[%emt 0:00:08]} Ba6 {[%emt 0:11:19]} 23. Kh2 {[%emt 0:04:33]} Rg6 {[%emt 0:00:35]} 24. e4 {[%emt 0:01:17]} f4 {[%emt 0:01:52]} 25. c5 {[%emt 0:04:01]} Bxd3 {[%emt 0:09:55]} 26. Rxd3 {[%emt 0:00:17]} dxc5 {[%emt 0:00:16]} 27. c4 {[%emt 0:00:16]} Qe7 {[%emt 0:00:44]} 28. Red1 {[%emt 0:00:27]} Rd6 {[%emt 0:02:50]} 29. Bb2 {[%emt 0:00:08]} Nh5 {[%emt 0:02:40]} 30. Bc3 {[%emt 0:01:29]} Qe8 {[%emt 0:01:10]} 31. Qc2 {[%emt 0:00:18]} Nf6 {[%emt 0:01:16]} 32. Ra1 {[%emt 0:02:14]} Nd7 {[%emt 0:02:43]} 33. Rad1 {[%emt 0:00:34]} Qe7 {[%emt 0:00:49]} 34. Qb2 {[%emt 0:00:23]} g5 {[%emt 0:00:38]} 35. Qf2 {[%emt 0:00:46]} Rf8 {[%emt 0:00:55]} 36. g4 {[%emt 0:01:26]} fxg3+ {[%emt 0:00:23]} 37. Qxg3 {[%emt 0:00:07]} Rg6 {[%emt 0:00:12]} 38. Rg1 {[%emt 0:00:19]} Rf7 {[%emt 0:00:49]} 39. Qf2 {[%emt 0:01:31]} Qf6 {[%emt 0:00:53]} 40. Bd2 {[%emt 0:00:33]} Qg7 {[%emt 0:00:47]} 41. Rg3 {[%emt 0:00:23]} Qf6 {[%emt 0:00:52]} 42. Qg2 {[%emt 0:00:18]} Rfg7 {[%emt 0:00:05]} 43. Bc1 {[%emt 0:00:39]} Nf8 {[%emt 0:00:33]} 44. Rd1 {[%emt 0:01:26]} h6 {[%emt 0:00:23]} 45. Rg1 {[%emt 0:01:03]} c6 {[%emt 0:00:30]} 46. Qd2 {[%emt 0:00:38]} Qd6 {[%emt 0:00:34]} 47. Rd1 {[%emt 0:00:09]} Rd7 {[%emt 0:00:36]} 48. Bb2 {[%emt 0:00:43]} Rgg7 {[%emt 0:00:37]} 49. Qc3 {[%emt 0:00:47]} Ng6 {[%emt 0:00:10]} 50. Rg2 {[%emt 0:00:30]} Rde7 {[%emt 0:00:46]} 51. Rgd2 {[%emt 0:00:13]} Nf4 {[%emt 0:00:22]} 52. Kg3 {[%emt 0:01:24]} cxd5 {[%emt 0:00:18]} 53. exd5 {[%emt 0:00:40]} Qd7 {[%emt 0:00:13]} 54. Rh2 {[%emt 0:00:24]} Qxa4 {[%emt 0:00:19]} 55. Re1 {[%emt 0:00:21]} Ng6 {[%emt 0:00:12]} 56. Rd2 {[%emt 0:00:38]} Qd7 {[%emt 0:00:26]} 57. Rde2 {[%emt 0:00:42]} Qd6 {[%emt 0:00:29]} 58. Re4 {[%emt 0:00:20]} Rgf7 {[%emt 0:00:15]} 59. Qe3 {[%emt 0:00:26]} Rf5 {[%emt 0:00:43]} 60. Kg4 {[%emt 0:00:40]} Qf6 {[%emt 0:01:25]} 61. d6 {[%emt 0:00:37]} Rd7 {[%emt 0:00:42]} 62. Bxe5 {[%emt 0:00:24]} Nxe5+ {[%emt 0:00:19]} 63. Rxe5 {[%emt 0:00:08]} Rxe5 {[%emt 0:00:08]} 64. Qxe5 {[%emt 0:00:14]} Qxe5 {[%emt 0:00:03]} 65. Rxe5 {[%emt 0:00:05]} Rxd6 {[%emt 0:00:04]} 66. Kh5 {[%emt 0:00:17]} Kf7 {[%emt 0:00:39]} 67. Rf5+ {[%emt 0:00:42]} Ke6 {[%emt 0:00:08]} 68. Rf8 {[%emt 0:00:40]} Ke5 {[%emt 0:00:05]} 69. Re8+ {[%emt 0:00:13]} Re6 {[%emt 0:00:31]} 70. Rxe6+ {[%emt 0:00:19]} Kxe6 {[%emt 0:00:05]} 71. Kxh6 {[%emt 0:00:06]} a4 {[%emt 0:00:02]} 72. Kxg5 {[%emt 0:00:12]} a3 {[%emt 0:00:02]} 73. h4 {[%emt 0:00:11]} a2 {[%emt 0:00:03]} 74. h5 {[%emt 0:00:05]} a1=Q {[%emt 0:00:05]} 75. h6 {[%emt 0:00:21]} Qh8 {[%emt 0:00:06]} 76. Kg6 {[%emt 0:00:34]} Ke5 {[%emt 0:00:27]} 77. h7 {[%emt 0:00:28]} Kd4 {[%emt 0:00:11]} 78. f4 {[%emt 0:00:12]} Kxc4 {[%emt 0:00:11]} 79. f5 {[%emt 0:00:09]} Kd5 {[%emt 0:00:38]} 80. f6 {[%emt 0:00:15]} Ke6 {[%emt 0:00:10]} 81. f7 {[%emt 0:00:12]} Ke7 {[%emt 0:00:09]} 82. Kg5 {[%emt 0:00:25]} Kxf7 {[%emt 0:00:12]} 83. Kh6 {[%emt 0:00:11]} Kf6 {[%emt 0:00:17]} 84. Kh5 {[%emt 0:00:09]} Kf5 {[%emt 0:00:05]} 85. Kh6 {[%emt 0:00:15]} c4 {[%emt 0:00:05]} 86. Kh5 {[%emt 0:00:11]} Qxh7# {[%emt 0:00:04]} 0-1